bitfinex-derivatives/quotes_SOLF0:USTF0_20260311
["timestamp","ask_amount","ask_price","bid_price","bid_amount"]
[1773197435476,3.35433895,85.549,85.51,3.94227003]
[1773197435677,3.35433895,85.559,85.511,3.94227003]
[1773197437181,3.35616814,85.574,85.531,3.77059898]
[1773197438682,3.35616814,85.574,85.541,3.77059898]
[1773197438883,3.35133235,85.588,85.541,3.77059898]
[1773197439882,3.35133235,85.583,85.541,3.77059898]
[1773197440072,3.35133235,85.583,85.523,10.522]
[1773197440073,3.35133235,85.583,85.531,3.77059898]
[1773197440271,3.35133235,85.583,85.54,3.49147768]
[1773197441078,3.35133235,85.583,85.531,3.77059898]
[1773197441479,3.34010183,85.579,85.531,3.77059898]
[1773197442783,3.35604327,85.577,85.531,3.77059898]
[1773197443077,3.35604327,85.539,85.462,3.77059898]
[1773197443277,3.49147768,85.54,85.462,3.77059898]
[1773197443278,3.35604327,85.509,85.462,3.77059898]
[1773197443482,3.35604327,85.489,85.431,3.77059898]
[1773197443679,3.35604327,85.489,85.441,3.77059898]
[1773197443880,3.35604327,85.489,85.45,3.49147768]
[1773197444081,3.49147768,85.5,85.45,3.49147768]
[1773197444082,3.49147768,85.5,85.451,3.77059898]
[1773197444774,3.5638378,85.517,85.471,3.77059898]
[1773197445478,177.89039164,85.593,85.41,2.03561746]
[1773197445479,3.49147768,85.54,85.491,3.77059898]
[1773197445780,3.5638378,85.546,85.501,3.77059898]
[1773197447381,3.5638378,85.546,85.431,163.865]
[1773197447382,3.56956537,85.539,85.49,7.26207666]
[1773197447579,3.56956537,85.509,85.431,3.77059898]
[1773197449182,3.67420328,85.506,85.436,3.77059898]
[1773197450080,3.67420328,85.506,85.453,4.05955601]
[1773197451085,3.67420328,85.506,85.455,4.05955601]
[1773197454586,3.67420328,85.506,85.457,4.05955601]
[1773197455187,10.523,85.518,85.459,4.05955601]
[1773197455590,14.2545508,85.518,85.459,4.05955601]
[1773197456488,14.2545508,85.518,85.461,4.05955601]
[1773197456687,3.7315508,85.517,85.461,4.05955601]
[1773197458095,3.7315508,85.531,85.468,4.05955601]
[1773197459485,3.7315508,85.531,85.46,9.37967443]
[1773197459486,3.7315508,85.531,85.473,4.05955601]
[1773197460390,3.7315508,85.531,85.484,4.05955601]
[1773197462189,21.027,85.597,85.501,4.05955601]
[1773197462190,3.7315508,85.553,85.501,4.05955601]
[1773197463393,3.7315508,85.553,85.503,4.05955601]
[1773197465496,3.7315508,85.553,85.513,10.524]
[1773197466188,3.7315508,85.568,85.516,10.523]
[1773197466495,3.7315508,85.568,85.517,4.05955601]
[1773197467696,3.7315508,85.568,85.52,3.49579965]
[1773197468400,3.7315508,85.566,85.504,4.05955601]
[1773197468600,3.7315508,85.566,85.51,3.49579965]
[1773197468793,3.7315508,85.559,85.51,3.49579965]
[1773197468998,14.33439164,85.64,85.461,35.06]
[1773197468999,3.7315508,85.589,85.53,3.49579965]
[1773197469195,3.7315508,85.579,85.52,3.49579965]
[1773197470401,3.7315508,85.571,85.52,3.49579965]
[1773197470592,3.49579965,85.57,85.52,3.49579965]
[1773197470796,3.7315508,85.569,85.52,3.49579965]
[1773197472204,3.7315508,85.559,85.502,4.05955601]
[1773197472703,3.7315508,85.558,85.51,3.49579965]
[1773197473200,3.7315508,85.558,85.511,4.05955601]
[1773197473703,3.7315508,85.558,85.52,3.49579965]
[1773197481207,10.517,85.569,85.531,4.0592302]
[1773197482208,14.23232626,85.569,85.531,4.0592302]
[1773197482405,14.23232626,85.567,85.531,4.0592302]
[1773197482706,3.71532626,85.566,85.52,3.49579965]
[1773197484411,3.71532626,85.566,85.522,10.523]
[1773197485015,3.72426071,85.564,85.522,10.523]
[1773197488714,3.69911601,85.561,85.52,3.49610685]
[1773197490411,3.69869643,85.558,85.52,3.49610685]
[1773197491109,3.74496055,85.555,85.504,4.0592302]
[1773197493315,10.52,85.544,85.504,4.0592302]
[1773197495717,3.50801415,85.54,85.504,4.0592302]
[1773197496616,3.50810405,85.528,85.452,35.06]
[1773197496815,3.50705914,85.54,85.491,3.87828635]
[1773197497120,3.50705914,85.54,85.501,3.87828635]
[1773197497915,3.50705914,85.533,85.481,3.87828635]
[1773197498220,3.50705914,85.533,85.491,3.87828635]
[1773197499019,3.51518783,85.528,85.453,3.87828635]
[1773197499215,3.51518783,85.528,85.471,3.87828635]
[1773197500323,10.523,85.516,85.471,3.87828635]
[1773197500726,3.51518783,85.54,85.491,3.87828635]
[1773197501025,3.51518783,85.54,85.416,163.894]
[1773197501026,3.51518783,85.54,85.5,7.3743932]
[1773197501421,3.51518783,85.54,85.501,3.87828635]
[1773197501821,10.519,85.552,85.51,3.49610685]
[1773197502021,3.52810486,85.551,85.51,7.3743932]
[1773197502224,3.52810486,85.551,85.51,3.87828635]
[1773197503421,10.52,85.545,85.51,3.87828635]
[1773197504323,3.53356791,85.564,85.511,3.87828635]
[1773197504523,3.53356791,85.564,85.52,3.49610685]
[1773197505323,3.53396444,85.563,85.52,3.49610685]
[1773197506928,5.66973028,85.562,85.52,7.3743932]
[1773197507121,3.53396444,85.563,85.52,7.3743932]
[1773197507322,3.53396444,85.563,85.52,3.87828635]
[1773197508823,0.00061952,85.619,85.551,3.87828635]
[1773197509024,28.82204083,85.672,85.522,35.06]
[1773197509025,13.01025342,85.699,85.61,3.49610685]
[1773197509325,13.01025342,85.689,85.63,3.49610685]
[1773197509529,163.247,85.756,85.62,3.49610685]
[1773197509530,13.01025342,85.679,85.62,3.49610685]
[1773197510227,13.01025342,85.679,85.64,3.49610685]
[1773197510734,13.01025342,85.679,85.65,3.49610685]
[1773197511526,13.01025342,85.679,85.63,9.33871134]
[1773197513631,13.01025342,85.679,85.61,9.33871134]
[1773197514329,13.04133493,85.677,85.61,9.33871134]
[1773197515230,13.04133493,85.677,85.612,10.511]
[1773197518431,9.33871134,85.73,85.561,46.75]
[1773197518432,13.04232458,85.692,85.635,10.509]
[1773197521229,13.04232458,85.692,85.65,9.33871134]
[1773197521735,13.04420215,85.706,85.65,9.33871134]
[1773197522134,13.04420215,85.706,85.652,10.507]
[1773197522534,13.04420215,85.727,85.67,9.33871134]
[1773197523035,13.04420215,85.727,85.672,10.504]
[1773197524036,13.04420215,85.727,85.682,10.503]
[1773197524334,13.04420215,85.727,85.69,9.33871134]
[1773197526241,9.33871134,85.77,85.69,9.33871134]
[1773197526242,13.06123277,85.742,85.69,9.33871134]
[1773197527341,13.06123277,85.742,85.691,10.502]
[1773197527941,13.06123277,85.742,85.631,35.06]
[1773197528145,13.06589791,85.731,85.66,9.33871134]
[1773197528344,13.06589791,85.731,85.68,9.33871134]
[1773197528844,13.06980287,85.789,85.68,9.33871134]
[1773197529447,13.06980287,85.764,85.7,9.33871134]
[1773197530546,13.06980287,85.764,85.721,10.498]
[1773197531744,13.06980287,85.764,85.73,10.497]
[1773197532146,13.03184605,85.789,85.73,10.497]
[1773197532646,13.03184605,85.789,85.74,10.496]
[1773197533546,13.03184605,85.789,85.72,9.33871134]
[1773197534050,13.05980655,85.788,85.721,10.498]
[1773197534351,13.05980655,85.788,85.7,9.33871134]
[1773197534544,23.54980655,85.788,85.719,10.498]
[1773197534748,13.05980655,85.787,85.719,10.498]
[1773197535249,10.49,85.785,85.719,10.498]
[1773197535449,13.09273046,85.784,85.719,10.498]
[1773197535650,13.09273046,85.784,85.7,9.33871134]
[1773197535651,13.09273046,85.784,85.731,10.497]
[1773197546254,13.09273046,85.784,85.72,9.33871134]
[1773197546854,13.08474369,85.782,85.738,10.496]
[1773197548450,13.08474369,85.782,85.71,9.31647171]
[1773197548958,10.491,85.781,85.71,9.31647171]
[1773197549154,13.08277017,85.78,85.71,9.31647171]
[1773197549756,13.08277017,85.777,85.73,10.497]
[1773197551464,13.07635803,85.774,85.73,10.497]
[1773197555565,12.97598691,85.772,85.71,9.31647171]
[1773197556070,12.97598691,85.788,85.71,9.31647171]
[1773197557270,12.97598691,85.788,85.747,10.495]
[1773197559770,12.97598691,85.788,85.738,10.496]
[1773197560871,283.67188373,85.798,85.685,21.005]
[1773197560872,13.11400532,85.785,85.685,21.005]
[1773197561065,13.11400532,85.785,85.7,9.31647171]
[1773197561871,13.11400532,85.762,85.714,10.499]
[1773197562067,13.11400532,85.762,85.7,9.31647171]
[1773197563474,13.11267484,85.759,85.68,9.31647171]
[1773197563781,283.67188373,85.798,85.68,9.31647171]
[1773197563782,13.11267484,85.796,85.72,9.31647171]
[1773197564577,13.11267484,85.79,85.72,9.31647171]
[1773197565683,13.08921365,85.789,85.72,9.31647171]
[1773197566677,13.08921365,85.783,85.733,10.497]
[1773197567784,13.08921365,85.783,85.741,10.496]
[1773197568781,13.08921365,85.783,85.732,10.497]
[1773197570890,13.04991247,85.78,85.72,9.31647171]
[1773197571678,13.04991247,85.78,85.706,21.71526114]
[1773197571679,13.04991247,85.775,85.73,3.47892133]
[1773197571885,13.04991247,85.769,85.71,3.47892133]
[1773197572189,13.04991247,85.769,85.699,21.71526114]
[1773197572391,13.04991247,85.767,85.72,3.47892133]
[1773197572591,13.04991247,85.767,85.71,3.47892133]
[1773197573190,13.04991247,85.767,85.72,3.47892133]
[1773197573387,10.493,85.765,85.72,3.47892133]
[1773197573593,13.04896494,85.764,85.72,3.47892133]
[1773197574282,10.493,85.763,85.712,10.499]
[1773197574484,13.04896494,85.762,85.712,10.499]
[1773197575895,13.04896494,85.762,85.73,3.47892133]
[1773197581002,13.04896494,85.762,85.72,3.47892133]
[1773197582503,10.493,85.761,85.72,3.47892133]
[1773197582799,12.9831442,85.758,85.711,21.71526114]
[1773197583003,12.9831442,85.758,85.71,3.47892133]
[1773197583698,12.9831442,85.758,85.72,3.47892133]
[1773197584405,12.9831442,85.756,85.72,3.47892133]
[1773197590407,12.94029108,85.753,85.72,3.47892133]
[1773197592709,12.94029108,85.753,85.709,10.5]
[1773197592910,12.94029108,85.753,85.72,3.47892133]
[1773197596609,4.05939906,85.749,85.686,21.78225711]
[1773197596813,4.05939906,85.747,85.691,3.84476284]
[1773197597013,4.05939906,85.745,85.71,3.47892133]
[1773197597314,4.05939906,85.743,85.71,3.47892133]
[1773197597518,4.05939906,85.754,85.72,3.47892133]
[1773197601420,4.05939906,85.754,85.73,3.47892133]
[1773197606117,10.495,85.749,85.702,10.5]
[1773197606319,3.91478366,85.748,85.71,3.47892133]
[1773197607425,3.91478366,85.746,85.71,3.47892133]
[1773197607818,3.91478366,85.744,85.7,3.47892133]
[1773197608022,3.91478366,85.74,85.7,3.47892133]
[1773197608223,3.91478366,85.74,85.71,3.47892133]
[1773197608725,3.91478366,85.738,85.695,3.69120806]
[1773197608926,3.91478366,85.738,85.71,3.47892133]
[1773197609123,3.91478366,85.738,85.683,3.69120806]
[1773197609328,3.91478366,85.736,85.69,3.47892133]
[1773197609625,3.91478366,85.736,85.69,3.4825224]
[1773197610419,3.91478366,85.732,85.69,3.4825224]
[1773197611614,3.91478366,85.732,85.69,7.17373046]
[1773197613123,3.91478366,85.732,85.7,3.4825224]
[1773197618532,3.91478366,85.732,85.7,7.15544005]
[1773197618726,10.496,85.741,85.71,3.4825224]
[1773197619622,14.40324843,85.741,85.7,3.67291765]
[1773197619822,14.40324843,85.739,85.7,7.15544005]
[1773197621333,3.90724843,85.752,85.73,3.4825224]
[1773197622128,3.90724843,85.752,85.72,3.4825224]
[1773197622530,3.90724843,85.765,85.73,3.4825224]
[1773197623035,3.90724843,85.765,85.74,3.4825224]
[1773197628633,3.90724843,85.781,85.741,3.67291765]
[1773197628836,6.55960671,85.78,85.75,3.4825224]
[1773197629037,6.55960671,85.779,85.75,3.4825224]
[1773197629236,6.55960671,85.778,85.75,3.4825224]
[1773197629432,6.55960671,85.777,85.75,3.4825224]
[1773197629627,3.90724843,85.781,85.75,3.4825224]
[1773197632740,3.95542601,85.78,85.75,3.4825224]
[1773197635439,3.95542601,85.776,85.73,3.4825224]
[1773197636340,3.95542601,85.773,85.73,3.4825224]
[1773197637243,3.95542601,85.773,85.74,3.4825224]
[1773197637443,3.95542601,85.771,85.74,3.4825224]
[1773197638842,10.493,85.762,85.74,0.0005224]
[1773197639044,10.493,85.762,85.74,3.26178695]
[1773197639444,3.95542601,85.769,85.74,3.26178695]
[1773197641739,20.976,85.805,85.696,21.7743612]
[1773197641740,3.95542601,85.767,85.718,4.04543322]
[1773197642046,3.95542601,85.767,85.73,2.60974641]
[1773197643443,10.494,85.757,85.73,2.60974641]
[1773197651053,14.44942601,85.757,85.73,2.60974641]
[1773197656558,10.494,85.757,85.73,2.60974641]
[1773197656758,10.494,85.754,85.73,2.60974641]
[1773197656967,10.494,85.754,85.72,2.60974641]
[1773197657267,10.494,85.754,85.73,2.60974641]
[1773197657665,3.95542601,85.75,85.71,2.60974641]
[1773197659469,3.98198788,85.743,85.71,2.60974641]
[1773197663671,3.98198788,85.743,85.72,2.60974641]
[1773197665270,3.98198788,85.743,85.71,2.60974641]
[1773197667870,3.98198788,85.741,85.71,2.60974641]
[1773197668276,3.98198788,85.739,85.7,2.60974641]
[1773197668472,3.98198788,85.739,85.69,2.60974641]
[1773197669369,3.98198788,85.73,85.69,2.60974641]
[1773197669568,3.98198788,85.73,85.69,2.61190544]
[1773197669765,3.98198788,85.73,85.69,6.57501912]
[1773197671678,3.98198788,85.73,85.691,3.96311368]
[1773197671878,3.98198788,85.73,85.7,2.61190544]
[1773197672672,10.497,85.731,85.701,3.96311368]
[1773197678782,10.497,85.731,85.71,2.61190544]
[1773197681077,10.497,85.731,85.687,10.502]
[1773197681078,3.72049844,85.73,85.7,6.35566256]
[1773197681382,3.72049844,85.73,85.71,2.61190544]
[1773197681581,35.83855569,85.841,85.71,2.61190544]
[1773197681582,2.61190544,85.77,85.72,2.61190544]
[1773197681782,15.20704993,85.769,85.72,2.61190544]
[1773197681982,15.20704993,85.768,85.72,2.61190544]
[1773197682186,15.20704993,85.767,85.72,2.61190544]
[1773197682378,10.495,85.751,85.72,2.61190544]
[1773197682781,10.495,85.751,85.71,6.35566256]
[1773197683484,10.495,85.747,85.711,3.74375712]
[1773197684878,10.495,85.747,85.72,2.61190544]
[1773197685278,3.72049844,85.75,85.72,6.35566256]
[1773197686185,3.72049844,85.75,85.721,3.74375712]
[1773197687575,10.495,85.749,85.721,3.74375712]
[1773197688990,3.72049844,85.768,85.74,2.61190544]
[1773197689190,3.72049844,85.783,85.741,3.74375712]
[1773197689489,3.78434924,85.778,85.741,3.74375712]
[1773197689682,6.55052049,85.782,85.741,3.74375712]
[1773197689683,3.78434924,85.776,85.741,3.74375712]
[1773197689883,10.33486973,85.775,85.741,3.74375712]
[1773197690090,3.78434924,85.775,85.741,3.74375712]
[1773197691389,10.492,85.774,85.741,3.74375712]
[1773197691689,14.27634924,85.774,85.741,3.74375712]
[1773197693387,14.27634924,85.774,85.75,2.61190544]
[1773197694179,3.78434924,85.773,85.75,2.61190544]
[1773197694787,3.78434924,85.771,85.75,0.00090544]
[1773197694986,3.78434924,85.771,85.74,2.61190544]
[1773197696387,3.78434924,85.768,85.74,2.61190544]
[1773197702898,10.491,85.777,85.741,3.6987952]
[1773197703192,14.27534924,85.777,85.741,3.6987952]
[1773197703994,10.492,85.775,85.741,3.6987952]
[1773197704198,14.27634924,85.775,85.741,3.6987952]
[1773197704390,3.78434924,85.774,85.74,2.61190544]
[1773197705398,10.493,85.766,85.74,2.61190544]
[1773197707501,14.27734924,85.766,85.74,2.61190544]
[1773197708703,3.78434924,85.765,85.731,3.6987952]
[1773197709004,3.78434924,85.765,85.74,2.61190544]
[1773197709193,10.492,85.773,85.74,2.61190544]
[1773197709396,14.27634924,85.773,85.74,2.61190544]
[1773197709796,3.78434924,85.773,85.74,2.61190544]
[1773197709994,3.78434924,85.773,85.75,2.61190544]
[1773197710203,3.78434924,85.773,85.74,6.31070064]
[1773197710898,14.27634924,85.773,85.74,6.31070064]
[1773197711701,10.492,85.771,85.74,6.31070064]
[1773197713000,14.27634924,85.771,85.74,6.31070064]
[1773197713903,3.78434924,85.77,85.74,6.31070064]
[1773197714606,3.78434924,85.759,85.722,3.6987952]
[1773197714905,3.78434924,85.759,85.73,2.61190544]
[1773197716001,3.78434924,85.757,85.722,3.6987952]
[1773197716208,3.78434924,85.757,85.72,2.61190544]
[1773197717508,10.494,85.753,85.72,2.61190544]
[1773197718207,3.78434924,85.757,85.73,2.61190544]
[1773197718702,3.78434924,85.767,85.73,6.31070064]
[1773197718902,10.492,85.769,85.717,10.499]
[1773197718903,10.492,85.769,85.74,2.61190544]
[1773197719504,14.34516754,85.769,85.74,2.61190544]
[1773197726307,10.493,85.765,85.74,2.61190544]
[1773197727310,3.85316754,85.768,85.74,2.61190544]
[1773197727509,6.55800807,85.767,85.74,2.61190544]
[1773197727705,3.85316754,85.768,85.74,2.61190544]
[1773197730414,6.56462836,85.767,85.74,2.61190544]
[1773197730712,3.85316754,85.768,85.74,2.61190544]
[1773197730913,6.56437563,85.767,85.74,2.61190544]
[1773197731113,3.85316754,85.768,85.74,2.61190544]
[1773197731312,6.56383652,85.767,85.74,2.61190544]
[1773197731513,6.56383652,85.766,85.74,2.61190544]
[1773197731712,3.85316754,85.768,85.74,2.6091187]
[1773197732013,6.56520255,85.767,85.74,2.6091187]
[1773197732215,6.56520255,85.766,85.74,2.6091187]
[1773197732414,6.56520255,85.765,85.74,2.6091187]
[1773197732616,3.85316754,85.768,85.74,2.6091187]
[1773197732815,6.56747369,85.767,85.74,2.6091187]
[1773197733112,6.56747369,85.766,85.74,2.6091187]
[1773197733311,3.85316754,85.768,85.74,6.49431266]
[1773197733613,3.85316754,85.778,85.75,6.49431266]
[1773197733810,2.6091187,85.8,85.75,2.6091187]
[1773197733811,10.42413298,85.777,85.75,2.6091187]
[1773197734015,6.57096544,85.776,85.75,2.6091187]
[1773197734214,3.85316754,85.777,85.75,2.6091187]
[1773197734215,6.57096544,85.775,85.75,2.6091187]
[1773197734414,6.57096544,85.774,85.75,2.6091187]
[1773197734614,6.57096544,85.773,85.75,0.0001187]
[1773197734818,10.493,85.767,85.74,2.6091187]
[1773197735314,6.56939726,85.766,85.74,2.6091187]
[1773197735510,10.493,85.767,85.74,2.6091187]
[1773197735710,6.56937247,85.766,85.74,2.6091187]
[1773197735917,6.56925931,85.765,85.74,2.6091187]
[1773197736117,10.493,85.767,85.74,2.6091187]
[1773197736316,6.56921717,85.766,85.74,2.6091187]
[1773197736516,6.56921717,85.765,85.74,2.6091187]
[1773197736817,10.493,85.767,85.74,2.6091187]
[1773197737020,6.56921717,85.766,85.74,2.6091187]
[1773197737221,6.56921717,85.765,85.74,2.6091187]
[1773197737418,10.493,85.767,85.74,2.6091187]
[1773197737619,10.493,85.765,85.74,2.6091187]
[1773197743427,4.03689504,85.764,85.74,2.6091187]
[1773197745032,6.79697052,85.763,85.74,2.6091187]
[1773197745327,6.79697052,85.762,85.74,2.6091187]
[1773197745529,6.79697052,85.761,85.74,2.6091187]
[1773197745831,6.79697052,85.76,85.74,2.6091187]
[1773197746131,6.79697052,85.759,85.74,2.6091187]
[1773197746331,10.492,85.772,85.74,2.6091187]
[1773197746630,6.7968968,85.771,85.74,2.6091187]
[1773197746829,6.7968968,85.77,85.74,2.6091187]
[1773197747024,6.7968968,85.769,85.74,2.6091187]
[1773197747232,6.7968968,85.768,85.74,2.6091187]
[1773197747529,10.492,85.772,85.74,2.6091187]
[1773197747530,6.7968968,85.767,85.74,2.6091187]
[1773197747730,6.7968968,85.766,85.74,2.6091187]
[1773197747930,6.7968968,85.765,85.74,2.6091187]
[1773197748231,6.7968968,85.764,85.74,2.6091187]
[1773197748430,6.7968968,85.763,85.74,2.6091187]
[1773197748630,6.7968968,85.762,85.74,2.6091187]
[1773197748932,6.7968968,85.761,85.74,2.6091187]
[1773197749128,6.7968968,85.76,85.74,2.6091187]
[1773197749433,14.52889504,85.77,85.74,2.6091187]
[1773197749630,6.79699995,85.769,85.74,2.6091187]
[1773197749930,6.79699995,85.768,85.74,2.6091187]
[1773197750125,6.79699995,85.767,85.74,2.6091187]
[1773197750330,6.79699995,85.766,85.74,2.6091187]
[1773197750631,6.79699995,85.765,85.74,2.6091187]
[1773197750929,6.79699995,85.764,85.74,2.6091187]
[1773197751127,6.79699995,85.763,85.74,2.6091187]
[1773197751323,6.79699995,85.762,85.74,2.6091187]
[1773197751628,6.79699995,85.761,85.74,2.6091187]
[1773197751832,6.79699995,85.76,85.74,2.6091187]
[1773197752033,14.52889504,85.77,85.74,2.6091187]
[1773197752332,10.79070539,85.769,85.74,2.6091187]
[1773197752533,6.79710985,85.768,85.74,2.6091187]
[1773197752831,10.79070539,85.767,85.74,2.6091187]
[1773197753132,3.99359554,85.765,85.74,2.6091187]
[1773197753332,6.79710985,85.764,85.74,2.6091187]
[1773197753631,10.79070539,85.763,85.74,2.6091187]
[1773197753832,6.79710985,85.762,85.74,2.6091187]
[1773197754025,6.79710985,85.761,85.74,2.6091187]
[1773197754223,6.79710985,85.76,85.74,2.6091187]
[1773197754429,10.79070539,85.759,85.723,3.90713634]
[1773197754622,6.79710985,85.758,85.73,2.6091187]
[1773197754827,6.79710985,85.757,85.73,2.6091187]
[1773197755024,6.79710985,85.756,85.73,2.6091187]
[1773197755234,6.79710985,85.755,85.73,2.6091187]
[1773197755527,3.99359554,85.759,85.73,2.6091187]
[1773197755731,6.79721528,85.758,85.73,2.6091187]
[1773197755932,6.79721528,85.757,85.73,2.6091187]
[1773197756132,6.79721528,85.756,85.73,2.6091187]
[1773197756332,6.79721528,85.755,85.73,2.6091187]
[1773197756533,3.99359554,85.759,85.73,2.6091187]
[1773197756733,6.79565951,85.758,85.73,2.6091187]
[1773197756935,3.99359554,85.759,85.73,2.6091187]
[1773197757135,6.79598724,85.758,85.73,2.6091187]
[1773197757339,3.99359554,85.759,85.74,0.0001187]
[1773197757534,6.79598967,85.758,85.74,0.0001187]
[1773197757736,3.99359554,85.759,85.74,0.0001187]
[1773197758038,6.79598765,85.758,85.74,0.0001187]
[1773197758334,6.79533628,85.757,85.74,0.0001187]
[1773197758538,6.79533628,85.756,85.74,0.0001187]
[1773197758742,6.79533628,85.755,85.74,0.0001187]
[1773197759038,6.79533628,85.754,85.74,0.0001187]
[1773197759228,3.99359554,85.759,85.73,2.6091187]
[1773197759429,6.79683876,85.758,85.73,2.6091187]
[1773197759642,6.79683876,85.757,85.73,2.6091187]
[1773197759840,3.99359554,85.769,85.74,2.6091187]
[1773197760038,6.7979736,85.768,85.74,2.6091187]
[1773197760338,6.7979736,85.767,85.74,2.6091187]
[1773197760538,6.7979736,85.766,85.74,2.6091187]
[1773197760739,6.7979736,85.765,85.74,2.6091187]
[1773197760939,6.7979736,85.764,85.74,2.6091187]
[1773197761135,6.7979736,85.763,85.74,2.6091187]
[1773197761340,6.7979736,85.762,85.74,2.6091187]
[1773197761538,3.99359554,85.76,85.73,2.6091187]
[1773197761841,3.99359554,85.758,85.73,2.6091187]
[1773197762843,3.99359554,85.758,85.728,3.90713634]
[1773197763141,3.99359554,85.758,85.73,2.6091187]
[1773197763441,2.6091187,85.78,85.72,2.6091187]
[1773197763442,3.99359554,85.756,85.72,2.6091187]
[1773197763640,10.79155871,85.755,85.72,2.6091187]
[1773197763842,6.79796317,85.754,85.72,2.6091187]
[1773197764141,3.99359554,85.755,85.73,2.6091187]
[1773197764441,6.7975066,85.754,85.73,2.6091187]
[1773197764632,3.99359554,85.755,85.73,2.6091187]
[1773197764832,6.79751995,85.754,85.73,2.6091187]
[1773197765032,3.99359554,85.755,85.73,2.6091187]
[1773197765240,6.79751995,85.754,85.73,2.6091187]
[1773197765441,3.99359554,85.755,85.73,2.6091187]
[1773197765641,6.7971528,85.754,85.73,2.6091187]
[1773197765843,3.99359554,85.755,85.73,2.6091187]
[1773197766043,6.79714144,85.754,85.73,2.6091187]
[1773197766343,3.99359554,85.755,85.73,2.6091187]
[1773197766544,6.7968011,85.754,85.73,2.6091187]
[1773197766746,3.99359554,85.755,85.73,2.6091187]
[1773197767044,6.79663856,85.754,85.73,2.6091187]
[1773197767244,6.79663856,85.753,85.73,2.6091187]
[1773197767445,6.79663856,85.752,85.73,2.6091187]
[1773197767646,3.99359554,85.755,85.73,2.6091187]
[1773197767847,6.79550758,85.754,85.73,2.6091187]
[1773197768146,6.79550758,85.753,85.73,2.6091187]
[1773197768346,3.99359554,85.755,85.73,2.6091187]
[1773197768547,6.79220058,85.754,85.73,2.6091187]
[1773197768848,6.79220058,85.753,85.73,2.6091187]
[1773197769045,3.99359554,85.755,85.73,2.6091187]
[1773197769245,203.26598884,86.114,85.74,6.51625504]
[1773197769246,3.99359554,85.767,85.74,6.51625504]
[1773197769446,6.79272933,85.766,85.74,6.51625504]
[1773197769742,6.79272933,85.765,85.74,6.51625504]
[1773197769943,3.99359554,85.798,85.76,2.6091187]
[1773197770143,3.99359554,85.796,85.76,2.6091187]
[1773197770449,3.99359554,85.794,85.76,2.6091187]
[1773197770648,3.99359554,85.792,85.76,2.6091187]
[1773197770848,6.79454188,85.791,85.76,2.6091187]
[1773197771044,3.99359554,85.789,85.76,2.6091187]
[1773197771246,3.99359554,85.787,85.76,2.6091187]
[1773197771450,3.99359554,85.785,85.76,2.6091187]
[1773197771643,3.99359554,85.783,85.75,6.51625504]
[1773197771948,10.78813742,85.782,85.75,6.51625504]
[1773197772147,6.79454188,85.781,85.76,2.6091187]
[1773197772350,6.79454188,85.78,85.76,2.6091187]
[1773197772647,6.79750605,85.779,85.76,2.6091187]
[1773197772843,3.99359554,85.782,85.76,2.6091187]
[1773197773043,6.80113419,85.781,85.76,2.6091187]
[1773197773251,3.99359554,85.782,85.76,2.6091187]
[1773197773445,6.77286236,85.781,85.76,2.6091187]
[1773197773748,10.491,85.781,85.76,0.0001187]
[1773197773950,3.99359554,85.78,85.75,2.6091187]
[1773197778146,280.89642825,85.809,85.74,6.51625504]
[1773197778147,3.99359554,85.778,85.74,6.51625504]
[1773197778341,3.99359554,85.776,85.74,6.51625504]
[1773197778547,3.99359554,85.774,85.74,6.51625504]
[1773197778747,3.99359554,85.772,85.74,6.51625504]
[1773197779047,3.99359554,85.77,85.74,6.51625504]
[1773197779250,6.7649446,85.769,85.74,6.51625504]
[1773197779444,3.99359554,85.77,85.74,6.51625504]
[1773197779645,6.76357794,85.769,85.74,6.51625504]
[1773197779845,3.99359554,85.77,85.74,6.51625504]
[1773197780045,6.76357794,85.769,85.74,6.51625504]
[1773197780246,3.99359554,85.77,85.74,6.51625504]
[1773197780540,6.76355145,85.769,85.74,6.51625504]
[1773197780746,3.99359554,85.77,85.74,6.51625504]
[1773197780948,6.76368372,85.769,85.74,6.51625504]
[1773197781150,3.99359554,85.77,85.74,6.51625504]
[1773197781349,3.69248263,85.768,85.73,2.6091187]
[1773197781645,3.69248263,85.768,85.73,6.53897113]
[1773197781952,3.69248263,85.768,85.73,2.6091187]
[1773197782554,3.69248263,85.763,85.73,2.6091187]
[1773197793557,3.69248263,85.763,85.73,2.60958183]
[1773197797663,3.69248263,85.763,85.73,6.5049234]
[1773197799264,3.69248263,85.763,85.74,2.60958183]
[1773197806768,3.69248263,85.763,85.73,3.89534157]
[1773197807068,3.69248263,85.763,85.74,2.60958183]
[1773197807269,3.69248263,85.763,85.712,21.7743612]
[1773197807270,3.96666129,85.756,85.717,3.89534157]
[1773197807469,3.96666129,85.756,85.72,2.60958183]
[1773197808071,3.96666129,85.756,85.721,3.89534157]
[1773197808569,10.494,85.754,85.721,3.89534157]
[1773197809370,14.46066129,85.754,85.721,3.89534157]